bitfinex/quotes_ETHUSD_20240731
["timestamp","ask_amount","ask_price","bid_price","bid_amount"]
[1722456643638,3.06162,3266.3,3265.9,0.01747574]
[1722456644000,0.55,3266.5,3265.9,0.01747574]
[1722456644233,6.06121,3266.7,3265.9,0.01747574]
[1722456644234,0.55,3266.6,3265.9,0.01747574]
[1722456644388,3.06143,3266.5,3265.9,0.01747574]
[1722456644989,3.06157,3266.3,3265.9,0.01747574]
[1722456645189,3.367817,3266.2,3265.9,0.01747574]
[1722456645388,3.06153,3266.4,3265.9,0.01747574]
[1722456646042,3.06144,3266.5,3265.9,0.01747574]
[1722456646349,3.0,3266.7,3265.9,0.01747574]
[1722456646508,3.06128,3266.6,3265.9,0.01747574]
[1722456646698,3.0,3266.5,3265.9,0.01747574]
[1722456647135,3.36138,3266.5,3265.9,0.01747574]
[1722456647464,3.0615,3266.4,3265.9,0.01747574]
[1722456648540,3.06166,3266.2,3265.9,0.01747574]
[1722456648949,3.06182,3266.1,3265.9,0.01747574]
[1722456649101,3.06184,3266.0,3265.9,0.01747574]
[1722456649294,3.674206,3266.0,3265.9,0.01747574]
[1722456649651,7.286046,3266.0,3265.9,0.01747574]
[1722456649945,6.674206,3266.0,3265.9,0.01747574]
[1722456650448,9.736046,3266.0,3265.9,0.01747574]
[1722456650771,7.224206,3266.0,3265.9,0.01747574]
[1722456651075,4.162366,3266.0,3265.9,0.01747574]
[1722456651226,0.612366,3266.0,3265.9,0.01747574]
[1722456651423,3.0,3266.0,3265.9,0.01747574]
[1722456651625,3.06179,3266.1,3265.9,0.01747574]
[1722456651877,6.06184,3266.0,3265.9,0.01747574]
[1722456652045,3.0,3266.0,3265.9,0.01747574]
[1722456652377,6.06176,3266.1,3265.9,0.01747574]
[1722456652531,7.279856,3266.0,3265.9,0.01747574]
[1722456652732,10.279856,3266.0,3265.9,0.01747574]
[1722456653275,0.3,3266.5,3265.9,0.01747574]
[1722456653483,5.47294,3267.0,3265.9,0.01747574]
[1722456653631,3.06173,3266.2,3265.9,0.01747574]
[1722456653834,3.06176,3266.1,3265.9,0.01747574]
[1722456654138,3.06184,3266.0,3265.9,0.01747574]
[1722456655171,6.67368,3266.0,3265.9,0.01747574]
[1722456655325,10.582248,3266.0,3265.9,0.01747574]
[1722456656125,7.520408,3266.0,3265.9,0.01747574]
[1722456657462,10.582248,3266.0,3265.9,0.01747574]
[1722456658038,7.520408,3266.0,3265.9,0.01747574]
[1722456658570,4.458568,3266.0,3265.9,0.01747574]
[1722456659083,3.0,3266.0,3265.9,0.01747574]
[1722456659292,5.49009,3266.5,3265.9,0.01747574]
[1722456659293,3.0,3266.2,3265.9,0.01747574]
[1722456659450,3.0,3266.4,3265.9,0.01747574]
[1722456659779,0.849009,3266.3,3265.9,0.01747574]
[1722456661256,3.06162,3266.3,3265.9,0.01747574]
[1722456661471,6.06171,3266.2,3265.9,0.01747574]
[1722456661779,3.0,3266.2,3265.9,0.01747574]
[1722456661999,3.0,3266.3,3265.9,0.01747574]
[1722456662140,3.06166,3266.2,3265.9,0.01747574]
[1722456662339,6.12368,3266.0,3265.9,0.01747574]
[1722456662541,6.67368,3266.0,3265.9,0.01747574]
[1722456663046,9.05278,3266.0,3265.9,0.01747574]
[1722456663352,12.05278,3266.0,3265.9,0.01747574]
[1722456665371,6.61184,3266.0,3265.9,0.01747574]
[1722456665692,10.7322728,3266.0,3265.9,0.01747574]
[1722456666044,13.7941128,3266.0,3265.9,0.01747574]
[1722456667271,4.6085928,3266.0,3264.5,0.0867714]
[1722456667583,3.06299,3264.8,3264.5,0.0867714]
[1722456667782,3.06282,3265.0,3264.5,0.0867714]
[1722456667957,3.0,3264.9,3264.5,0.0867714]
[1722456668542,9.12589,3264.9,3264.5,0.0867714]
[1722456668782,3.06297,3264.8,3264.5,0.0867714]
[1722456668949,6.06294,3264.9,3264.5,0.0867714]
[1722456668950,3.06316,3264.6,3264.5,0.0867714]
[1722456669158,3.0638,3264.0,3263.1,2.2819]
[1722456669459,3.06388,3263.9,3263.1,2.2819]
[1722456669681,0.612759,3263.9,3263.1,2.2819]
[1722456670007,6.06364,3264.1,3263.1,2.2819]
[1722456670185,3.06381,3263.9,3263.1,2.2819]
[1722456671277,3.06407,3263.7,3262.6,2.3799]
[1722456671670,3.06393,3263.8,3262.6,2.3799]
[1722456671877,6.614,3263.7,3262.7,0.23799]
[1722456672080,3.06429,3263.4,3262.7,0.23799]
[1722456672823,3.06411,3263.6,3262.7,0.23799]
[1722456673177,3.06411,3263.6,3262.6,2.3799]
[1722456673484,3.55,3263.7,3262.7,3.06491]
[1722456673829,3.55,3263.7,3262.6,2.3799]
[1722456674311,6.61402,3263.7,3262.6,2.3799]
[1722456674531,3.0642,3263.5,3262.6,2.3799]
[1722456674805,3.06449,3263.2,3262.1,2.3346]
[1722456675020,3.0643,3263.4,3262.1,5.4001]
[1722456675239,0.55,3263.1,3262.1,2.3346]
[1722456675736,3.6145,3263.2,3262.1,2.3346]
[1722456675906,3.72603,3263.1,3262.1,2.3346]
[1722456676318,0.66145,3263.1,3261.4,2.3923]
[1722456676605,3.06507,3262.6,3261.4,5.4584]
[1722456676811,3.0649,3262.8,3261.5,3.06605]
[1722456677028,0.55,3262.7,3261.8,3.06572]
[1722456677241,3.0,3263.1,3261.9,0.06131073]
[1722456677422,0.55,3263.0,3262.1,3.06543]
[1722456677751,0.55,3263.0,3262.1,5.45773]
[1722456678044,3.06495,3262.7,3261.6,3.611745]
[1722456678544,3.06495,3262.7,3261.6,0.545835]
[1722456678545,3.06516,3262.5,3261.6,0.545835]
[1722456678702,5.38859,3262.9,3261.6,0.545835]
[1722456678900,3.55,3262.8,3261.6,0.545835]
[1722456679139,3.06522,3262.5,3261.4,2.3923]
[1722456679348,3.06525,3262.4,3261.4,2.3923]
[1722456679639,3.06498,3262.7,3261.4,5.4584]
[1722456679848,3.55,3262.8,3261.4,2.3923]
[1722456679849,3.55,3262.6,3261.4,2.3923]
[1722456680026,3.06497,3262.7,3261.6,3.06593]
[1722456680227,0.55,3262.5,3261.6,3.611753]
[1722456680407,0.55,3262.5,3261.6,0.545823]
[1722456680743,0.55,3262.5,3261.5,3.06606]
[1722456680744,3.61514,3262.5,3261.5,3.06606]
[1722456680919,0.55,3262.5,3261.5,3.06606]
[1722456681251,3.06441,3263.3,3262.1,3.06542]
[1722456681443,3.06441,3263.3,3262.2,5.36215]
[1722456681444,6.06439,3263.3,3262.2,5.36215]
[1722456681761,3.06424,3263.5,3262.4,3.06522]
[1722456681905,1.053424,3263.4,3262.5,3.06513]
[1722456682547,1.053424,3263.4,3262.3,3.06525]
[1722456682703,1.053424,3263.4,3262.2,5.36214]
[1722456682906,3.06442,3263.3,3262.2,5.36214]
[1722456683128,0.55,3263.2,3262.2,2.2968]
[1722456683349,3.426012,3263.1,3262.2,2.2968]
[1722456683646,0.361442,3263.1,3262.2,2.2968]
[1722456683857,0.55,3263.0,3261.6,2.4462]
[1722456684000,3.06504,3262.6,3261.6,2.4462]
[1722456684205,3.371694,3262.5,3261.6,2.4462]
[1722456684445,6.921634,3262.5,3261.6,2.4462]
[1722456684654,3.06538,3262.3,3261.6,2.4462]
[1722456684816,3.856504,3262.5,3261.2,0.145068]
[1722456684817,3.06557,3262.1,3261.2,0.145068]
[1722456685027,3.0656,3262.0,3261.2,0.145068]
[1722456685226,3.37227,3261.9,3261.2,0.145068]
[1722456685734,3.06595,3261.7,3261.2,0.145068]
[1722456685942,3.06612,3261.5,3261.2,0.145068]
[1722456686151,3.0,3261.8,3261.2,0.145068]
[1722456686328,0.30656,3261.9,3261.2,0.145068]
[1722456686329,3.06626,3261.3,3261.2,0.145068]
[1722456686521,3.67951,3261.3,3261.2,0.145068]
[1722456686760,9.74577,3261.3,3261.2,0.145068]
[1722456687708,10.29577,3261.3,3261.2,0.145068]
[1722456688064,4.16325,3261.3,3261.2,0.145068]
[1722456688229,7.22951,3261.3,3261.2,0.145068]
[1722456688652,4.16325,3261.3,3261.2,0.145068]
[1722456688960,10.29577,3261.3,3261.2,0.145068]
[1722456690478,15.74353,3261.3,3261.2,0.145068]
[1722456690612,18.80979,3261.3,3261.2,0.145068]
[1722456691277,3.06755,3260.0,3259.1,2.4052]
[1722456691487,3.06755,3260.0,3259.1,2.64572]
[1722456691488,3.06756,3260.0,3259.1,2.64572]
[1722456691771,3.06756,3260.0,3258.7,0.00183292]
[1722456691772,2.3815,3260.1,3258.7,0.00183292]
[1722456692141,2.3815,3260.1,3258.8,2.3226]
[1722456692142,3.06744,3260.1,3258.8,2.3226]
[1722456692331,3.06776,3259.7,3258.8,2.3226]
[1722456692540,3.0,3260.0,3258.8,2.3226]
[1722456692829,3.0,3260.0,3258.7,0.00183292]
[1722456692830,3.06818,3259.3,3258.7,0.00183292]
[1722456693145,2.402,3259.4,3258.7,0.00183292]
[1722456693702,3.0,3259.8,3258.7,0.00183292]
[1722456694118,3.0,3259.9,3259.1,3.06829]
[1722456694322,3.06741,3260.1,3258.8,3.06861]
[1722456694571,6.674231,3260.0,3258.9,0.30704429]
[1722456694787,3.0,3259.9,3258.7,3.13184039]
[1722456694946,3.0,3259.9,3258.8,3.06858]
[1722456695290,0.15060136,3260.5,3258.7,0.06320039]
[1722456695291,3.0,3260.2,3258.7,0.00183292]
[1722456695511,2.94005,3261.3,3260.1,3.06732]
[1722456695791,0.15509959,3261.5,3260.0,2.349]
[1722456695952,3.06624,3261.4,3259.6,3.06778]
[1722456696159,3.06624,3261.4,3258.8,3.0]
[1722456696160,2.3268,3261.2,3258.8,3.0]
[1722456696341,2.3268,3261.2,3258.7,3.07048292]
[1722456696342,3.06697,3260.6,3258.7,3.07048292]
[1722456696544,3.06659,3261.0,3258.8,0.36841926]
[1722456696545,3.373737,3260.5,3258.8,0.36841926]
[1722456696794,3.0,3260.4,3259.4,3.06804]
[1722456696946,2.3268,3261.2,3259.5,0.06135908]
[1722456697156,3.06645,3261.1,3259.6,3.06782]
[1722456697377,3.06645,3261.1,3259.6,3.06784]
[1722456697378,3.06672,3260.9,3259.6,3.06784]
[1722456697542,2.3268,3261.2,3259.3,2.4523]
[1722456697543,2.3268,3261.2,3259.7,0.06135189]
[1722456698099,0.23268,3261.1,3260.2,3.06723]
[1722456698422,0.23268,3261.1,3260.0,3.06741]
[1722456698423,3.06651,3261.1,3260.0,3.06741]
[1722456698595,3.0664,3261.2,3260.0,3.06747]
[1722456698876,3.06619,3261.4,3259.4,3.12933692]
[1722456699092,2.4947,3261.8,3259.9,3.0675]
[1722456699290,3.06682,3260.7,3259.5,3.06792]
[1722456699508,3.06694,3260.6,3259.3,2.4523]
[1722456699698,3.0,3260.5,3259.6,3.06784]
[1722456699837,3.06657,3261.0,3259.6,3.06784]
[1722456700041,3.0,3260.6,3259.8,3.06761]
[1722456700241,3.856657,3260.9,3259.8,3.06761]
[1722456700489,3.856657,3260.9,3259.9,3.06757]
[1722456700784,3.856657,3260.9,3259.8,3.06766]
[1722456701019,3.306657,3260.9,3260.0,3.06748]
[1722456701170,0.306657,3260.9,3260.0,3.374228]
[1722456701374,0.306657,3260.9,3260.0,0.306748]
[1722456701731,3.06705,3260.5,3259.4,3.06802]
[1722456702014,3.06705,3260.5,3259.3,2.4523]
[1722456702217,3.06729,3260.3,3259.3,2.4523]
[1722456702404,3.06739,3260.1,3258.9,3.06845]
[1722456702732,3.06739,3260.1,3258.7,3.07050292]
[1722456702733,3.06805,3259.4,3258.7,0.00183292]
[1722456702938,5.4261,3259.9,3258.7,0.00183292]
[1722456703077,3.924219,3260.0,3258.7,0.00183292]
[1722456703280,3.0,3259.9,3258.8,2.3304]
[1722456703586,3.06795,3259.6,3258.8,2.3304]
[1722456703795,3.7601119,3259.8,3258.8,2.3304]
[1722456704003,3.0,3259.7,3258.8,2.3304]
[1722456704408,0.6924219,3259.8,3258.9,3.06851]
[1722456704574,0.6924219,3259.8,3258.8,2.3304]
[1722456704771,0.6924219,3259.8,3258.8,5.399]
[1722456704976,0.6924219,3259.8,3258.7,0.00183292]
[1722456704977,3.06795,3259.5,3258.7,0.00183292]
[1722456705271,3.306795,3259.4,3258.7,0.00183292]
[1722456705889,3.276795,3259.4,3258.7,0.00183292]
[1722456706276,3.06814,3259.3,3258.7,0.00183292]
[1722456706520,3.0,3259.2,3258.7,0.00183292]
[1722456706836,3.06844,3259.0,3258.7,0.00183292]
[1722456706993,0.306844,3258.9,3258.7,0.00183292]
[1722456707197,3.06857,3258.9,3258.7,0.00183292]
[1722456707403,3.06861,3258.8,3258.7,0.00183292]
[1722456707615,6.06861,3258.8,3258.7,0.00183292]
[1722456707793,9.13722,3258.8,3258.7,0.00183292]
[1722456708133,9.68722,3258.8,3258.7,0.00183292]
[1722456708430,10.655942,3258.8,3258.7,0.00183292]
[1722456708733,13.724552,3258.8,3258.7,0.00183292]
[1722456708952,7.587332,3258.8,3258.7,0.00183292]
[1722456709267,4.518722,3258.8,3258.7,0.00183292]
[1722456709390,10.655942,3258.8,3258.7,0.00183292]
[1722456709852,10.655942,3258.8,3257.9,0.145068]
[1722456709853,4.518722,3258.8,3257.9,0.145068]
[1722456710022,1.3087302,3258.7,3257.9,0.145068]
[1722456710196,0.55,3258.7,3257.9,0.145068]
[1722456710560,3.55,3258.7,3257.9,0.145068]
[1722456710696,3.06882,3258.6,3257.9,0.145068]
[1722456710896,3.55,3258.5,3257.9,0.145068]
[1722456711089,0.355,3258.4,3257.9,0.145068]
[1722456711331,0.55,3258.3,3257.9,0.145068]
[1722456712049,3.55,3258.3,3257.9,0.145068]
[1722456712214,3.06919,3258.2,3257.9,0.145068]
[1722456712567,2.3659,3258.1,3257.9,0.145068]
[1722456712736,6.6191,3258.3,3257.1,0.011]
[1722456712737,3.07011,3257.3,3257.1,0.011]
[1722456712892,4.93302,3257.2,3257.1,0.011]
[1722456713093,4.93302,3257.2,3254.8,3.07236]
[1722456713094,5.4129,3257.2,3255.4,3.07178]
[1722456713394,5.4129,3257.2,3254.2,3.07291]
[1722456713395,3.07084,3256.5,3255.3,3.07189]
[1722456713676,3.07118,3256.1,3254.8,3.07237]
[1722456713875,0.55,3256.4,3254.6,0.145068]
[1722456714049,0.55,3256.4,3254.8,3.07236]
[1722456714050,2.3354,3256.3,3254.8,3.07236]
[1722456714257,3.07087,3256.4,3254.6,0.145068]
[1722456714449,0.857087,3256.3,3254.7,3.3941878]
[1722456714681,3.0,3256.6,3255.5,3.07171]
[1722456714890,3.0,3256.6,3255.7,3.07152]
[1722456715120,3.0,3256.6,3255.8,3.07143]
[1722456715247,3.0,3256.6,3255.8,3.07142]
[1722456715451,2.2668,3256.9,3255.7,3.07153]
[1722456715679,0.77668,3256.8,3255.0,2.4028]
[1722456715879,3.77668,3256.8,3255.0,2.4028]
[1722456716156,3.22668,3256.8,3255.6,3.07154]
[1722456716364,0.54129,3257.1,3256.0,3.07125]
[1722456716574,0.54129,3257.1,3256.0,3.07123]
[1722456716985,0.54129,3257.1,3256.3,3.07096]
[1722456717187,0.54129,3257.1,3255.0,2.4028]
[1722456717188,0.14913998,3257.3,3255.6,3.07157]
[1722456717412,2.2986,3257.6,3255.1,3.07209]
[1722456717703,2.2986,3257.6,3255.0,2.4028]
[1722456717704,3.07053,3256.8,3255.6,3.07156]
[1722456717903,3.07031,3257.0,3255.1,3.07203]
[1722456717904,3.07048,3256.9,3255.1,3.07203]
[1722456718107,3.0705,3256.8,3255.6,3.07156]
[1722456718300,3.0,3256.7,3255.7,0.307156]
[1722456718612,3.07056,3256.8,3255.7,0.307156]
[1722456718785,3.0,3256.7,3255.7,0.307156]
[1722456719101,3.07068,3256.6,3255.7,0.307156]
[1722456719649,3.0,3256.7,3255.4,3.07181]
[1722456719650,6.0706,3256.7,3255.4,3.07181]
[1722456719855,3.07078,3256.6,3255.5,3.07172]
[1722456720102,3.0,3256.7,3255.5,3.07172]
[1722456720305,3.0,3256.7,3255.1,0.06143253]
[1722456720306,3.0,3256.8,3255.9,3.07131]
[1722456720458,2.44957198,3257.6,3255.8,3.07141]
[1722456720828,3.3147972,3257.5,3255.8,3.378571]
[1722456720967,3.07022,3257.1,3255.8,3.378571]
[1722456721386,0.2449572,3257.5,3255.8,0.307141]
[1722456721583,3.07067,3256.7,3255.0,2.4028]
[1722456721785,3.07067,3256.7,3255.3,3.07184]
[1722456722027,3.07084,3256.5,3255.0,2.4028]
[1722456722211,3.07084,3256.5,3255.4,3.0718]
[1722456722427,3.07097,3256.3,3255.2,3.07194]
[1722456722612,3.07097,3256.3,3255.1,3.07208]
[1722456722955,0.307084,3256.4,3254.5,2.4195]
[1722456722956,3.0,3256.2,3254.5,2.4195]
[1722456723243,0.55,3256.1,3253.8,2.4195]
[1722456723449,0.55,3256.3,3255.2,3.07194]
[1722456723450,3.071,3256.3,3255.2,3.07194]
[1722456723582,0.6378084,3256.2,3255.0,3.07211]
[1722456723782,3.07151,3255.8,3254.8,2.4195]
[1722456723985,3.6378084,3256.2,3253.8,0.31840126]
[1722456723986,3.0,3255.7,3255.0,3.0721]
[1722456724282,3.6378084,3256.2,3255.0,3.07218]
[1722456724487,0.6378084,3256.2,3255.2,5.56473]
[1722456724688,0.307084,3256.4,3255.2,5.56473]
[1722456724689,0.36378084,3256.1,3255.2,5.56473]
[1722456724964,6.377974,3256.4,3255.2,5.56473]
[1722456725235,3.307084,3256.4,3255.4,3.07174]
[1722456725434,0.307084,3256.4,3255.3,3.07185]
[1722456725647,0.307084,3256.4,3255.4,3.07181]
[1722456725786,0.307084,3256.4,3255.2,5.56476]
[1722456725991,0.307084,3256.4,3255.2,2.4928]
[1722456725992,3.07107,3256.2,3255.2,2.4928]
[1722456726218,3.07097,3256.3,3255.2,2.4928]
[1722456726445,3.0,3256.1,3255.2,2.4928]
[1722456726609,3.0,3256.1,3255.2,5.5648]
[1722456726790,6.07088,3256.4,3255.3,3.07183]
[1722456726989,0.607088,3256.3,3255.3,3.07183]
[1722456727308,0.607088,3256.3,3255.6,3.07155]
[1722456727501,5.42469,3257.1,3255.2,2.55423832]
[1722456727502,3.0,3257.0,3255.3,3.0719]
[1722456727704,2.3544,3257.1,3255.3,3.0719]
[1722456727705,3.07062,3256.7,3255.3,3.0719]
[1722456727919,3.07117,3256.1,3255.2,2.4928]
[1722456728118,6.07125,3256.0,3255.2,2.4928]
[1722456728444,3.07162,3255.7,3254.6,2.629468]
[1722456728754,0.589306,3255.6,3254.6,2.629468]
[1722456728941,3.589306,3255.6,3254.7,3.07241]
[1722456729142,0.589306,3255.6,3254.7,3.07241]
[1722456729347,3.0,3255.9,3254.6,2.629468]
[1722456729348,3.07152,3255.8,3254.6,2.629468]
[1722456729637,3.0,3255.9,3254.6,0.145068]
[1722456729841,3.6215,3255.8,3254.6,0.145068]
[1722456730054,3.07176,3255.5,3254.6,0.145068]
[1722456730202,3.0,3255.7,3254.6,0.145068]
[1722456730412,3.07145,3255.8,3254.6,0.145068]
[1722456730663,2.3081,3255.6,3253.4,1.5]
[1722456730792,5.3081,3255.6,3253.4,3.0737]
[1722456730999,5.3081,3255.6,3253.3,2.4704]
[1722456731000,0.55,3255.5,3253.3,2.4704]
[1722456731258,3.07234,3254.9,3253.3,2.4704]
[1722456731413,3.07286,3254.3,3252.7,5.51275]
[1722456731748,0.857286,3254.2,3252.7,2.4384]
[1722456732046,0.857286,3254.2,3252.8,3.07426]
[1722456732047,3.0,3254.2,3252.8,3.07426]
[1722456732198,3.0,3254.2,3252.9,3.07416]
[1722456732594,3.0,3254.2,3252.7,5.51276]
[1722456732595,3.07315,3254.0,3252.7,2.4384]
[1722456732911,3.07344,3253.7,3252.2,2.456]
[1722456733147,3.0,3254.2,3252.2,5.53078]
[1722456733335,3.07342,3253.8,3252.4,3.07465]
[1722456733549,3.0737,3253.5,3252.2,3.009078]
[1722456733751,3.07377,3253.4,3252.2,5.53083]
[1722456734021,3.07362,3253.5,3252.3,3.07473]
[1722456734243,3.0737,3253.4,3252.2,2.456]
[1722456734423,3.07389,3253.3,3252.2,2.456]
[1722456734624,3.07345,3253.7,3252.2,2.456]
[1722456734843,3.0,3253.6,3252.7,3.07435]
[1722456735153,3.0,3253.6,3252.5,3.07455]
[1722456735328,3.0,3253.6,3252.3,3.32032]
[1722456735329,3.0,3253.9,3252.3,0.2456]
[1722456735499,3.07286,3254.3,3252.7,3.07434]
[1722456735811,3.07268,3254.5,3253.2,3.07386]
[1722456736169,0.555448,3254.4,3253.3,0.307386]
[1722456736367,2.2608,3255.2,3253.5,3.07359]
[1722456736368,3.07221,3255.0,3253.5,3.07359]
[1722456736643,2.2608,3255.2,3253.4,2.2878]
[1722456736644,5.33285,3255.2,3253.9,3.0732]
[1722456736862,0.46167802,3255.7,3253.7,3.0734]
[1722456737001,0.46167802,3255.7,3254.3,3.07284]
[1722456737002,3.07174,3255.5,3254.3,3.07284]
[1722456737330,0.307145,3255.7,3254.3,3.07283]
[1722456737542,3.07189,3255.4,3253.4,2.2878]
[1722456737750,0.2567945,3255.6,3254.1,3.07301]
[1722456738062,0.2567945,3255.6,3254.4,3.07272]
[1722456738255,0.2567945,3255.6,3254.4,3.07269]
[1722456738459,3.07178,3255.5,3254.2,3.07294]
[1722456738659,3.07209,3255.2,3253.4,2.2878]
[1722456738881,3.07244,3254.8,3253.5,3.07358]
[1722456739018,3.07244,3254.8,3253.4,2.3078]
[1722456739019,3.07239,3254.8,3253.4,2.3078]
[1722456739223,5.33237,3255.3,3253.4,2.3078]
[1722456739224,3.0726,3254.6,3253.4,2.3078]
[1722456739524,3.0731,3254.1,3253.4,0.02]
[1722456739767,0.30726,3254.5,3253.4,0.02]
[1722456739768,3.07317,3254.0,3253.4,0.02]
[1722456739968,3.0,3254.4,3253.4,0.02]
[1722456740153,3.37993,3254.5,3253.4,3.0937]
[1722456740333,3.0,3254.4,3253.6,3.0735]
[1722456740673,0.30726,3254.5,3253.4,3.0937]
[1722456740817,3.30726,3254.5,3253.5,3.38297]
[1722456741019,0.30726,3254.5,3253.5,3.0736]
[1722456741247,3.07231,3254.9,3253.5,3.0736]
[1722456741248,3.0,3254.7,3253.5,3.0736]
[1722456741433,5.33232,3255.3,3253.9,3.07323]
[1722456741646,3.0723,3254.9,3253.5,3.0736]
[1722456741859,2.3352,3255.9,3254.0,5.40915]
[1722456742034,2.3352,3255.9,3254.7,3.07245]
[1722456742218,3.30496,3255.8,3254.5,3.07266]
[1722456742418,3.30496,3255.8,3254.4,3.07276]
[1722456742419,3.07172,3255.5,3254.4,3.07276]
[1722456742627,3.07172,3255.5,3254.0,2.3361]
[1722456742628,0.23352,3255.8,3254.5,3.07266]
[1722456742845,3.07115,3256.1,3254.8,3.07231]
[1722456743083,2.3352,3256.4,3254.3,3.07281]
[1722456743221,3.07126,3256.0,3254.7,3.07244]
[1722456743870,3.07109,3256.2,3254.6,0.06144552]
[1722456744073,3.378329,3256.1,3255.0,3.07219]
[1722456744275,3.07154,3255.7,3254.4,3.07272]
[1722456744479,0.307109,3256.1,3255.0,3.07213]
[1722456744615,0.307109,3256.1,3254.8,3.07231]
[1722456744816,0.307109,3256.1,3254.8,3.07232]
[1722456745018,0.307109,3256.1,3253.7,3.07342]
[1722456745259,2.3352,3256.4,3253.4,9.16363]
[1722456745560,3.07153,3255.7,3254.3,3.07283]
[1722456745765,3.07187,3255.4,3254.1,3.07297]
[1722456745978,3.0,3256.0,3254.3,3.07284]
[1722456746263,3.07197,3255.3,3253.9,3.0732]
[1722456746578,3.07197,3255.3,3253.4,0.02]
[1722456746579,3.07203,3255.2,3253.7,3.07335]
[1722456746734,3.0,3255.2,3253.5,2.3127]
[1722456746915,3.07258,3254.6,3253.5,2.3127]
[1722456747116,3.07242,3254.8,3253.6,3.07351]
[1722456747352,3.0,3254.7,3253.5,2.3127]
[1722456747555,3.607242,3254.7,3253.6,3.13493863]
[1722456747754,3.07239,3254.8,3253.5,2.853337]
[1722456747975,3.0,3254.7,3253.5,5.926927]
[1722456748252,3.0,3254.7,3253.8,3.07331]
[1722456748462,2.3273,3255.4,3253.9,3.07318]
[1722456748463,3.0,3254.9,3253.9,3.07318]
[1722456748644,3.0,3255.3,3254.1,3.07298]
[1722456748976,6.07191,3255.3,3254.0,3.07313]
[1722456749265,3.0,3255.3,3254.4,3.07275]
[1722456749469,6.07166,3255.6,3254.4,3.07275]
[1722456749632,3.986052,3255.5,3254.4,3.07275]
[1722456749830,3.0,3255.4,3253.8,3.07326]
[1722456750073,0.914322,3255.5,3253.5,2.853337]
[1722456750074,3.07255,3254.7,3253.5,5.926917]
[1722456750360,0.914322,3255.5,3253.5,2.853337]
[1722456750574,0.3066,3257.6,3253.6,1.56145421]
[1722456750789,3.07019,3257.2,3255.3,3.07191]
[1722456750944,3.07097,3256.3,3255.1,5.36734]
[1722456751265,3.07035,3257.0,3255.1,2.2953]
[1722456751485,3.07076,3256.6,3255.1,2.2953]
[1722456751685,0.307076,3256.5,3255.1,2.2953]
[1722456751995,0.307076,3256.5,3254.7,3.07241]
[1722456751996,3.07118,3256.1,3254.7,3.07241]
[1722456752149,6.07125,3256.0,3254.6,5.37456]
[1722456752345,3.0,3256.0,3254.8,3.07235]
[1722456752552,3.07098,3256.3,3255.1,3.07209]
[1722456752761,3.307098,3256.2,3255.1,0.06143468]
[1722456753286,3.0,3256.1,3255.1,0.06143468]
[1722456753660,0.307098,3256.2,3254.7,3.07245]
[1722456753864,0.307098,3256.2,3255.0,3.07218]
[1722456754091,0.307098,3256.2,3254.6,2.302]
[1722456754092,3.07152,3255.8,3254.6,2.302]
[1722456754291,0.307098,3256.2,3254.6,2.302]
[1722456754292,3.307152,3255.7,3254.6,2.302]
[1722456754558,0.307152,3255.7,3254.6,2.302]
[1722456754759,0.307098,3256.2,3254.6,2.302]
[1722456754760,3.07169,3255.6,3254.6,2.302]
[1722456755008,3.07174,3255.5,3254.6,2.302]
[1722456755213,3.07169,3255.6,3254.6,2.302]
[1722456755214,3.07164,3255.6,3254.6,2.302]
[1722456755676,3.0,3255.9,3254.6,2.302]
[1722456755677,3.07184,3255.4,3254.6,2.302]
[1722456755870,3.379104,3255.3,3254.1,2.4412]
[1722456756067,3.072,3255.2,3254.1,2.4412]
[1722456756291,6.07209,3255.2,3254.1,2.4412]
[1722456756618,3.07224,3255.0,3254.1,2.4412]
[1722456756919,3.07267,3254.5,3253.5,2.4412]
[1722456757075,3.07249,3254.7,3253.5,2.4412]
[1722456757274,6.07261,3254.6,3253.5,2.4412]
[1722456757475,3.0,3254.6,3253.5,2.4412]
[1722456757697,3.0726,3254.6,3253.5,2.4412]
[1722456758006,6.37993,3254.5,3253.5,2.4412]
[1722456758229,3.30726,3254.5,3253.5,2.4412]
[1722456758517,3.07292,3254.3,3253.4,0.02]
[1722456758817,3.07311,3254.1,3253.4,0.02]
[1722456759013,3.0,3254.0,3253.4,0.02]
[1722456759307,0.3,3253.9,3253.4,0.02]
[1722456759461,3.0,3254.2,3253.4,0.02]
[1722456759666,3.0732,3254.0,3253.4,0.02]
[1722456759867,3.0,3253.9,3253.4,0.02]
[1722456760269,3.0,3254.0,3253.4,0.02]
[1722456760492,3.07311,3254.1,3253.4,0.02]
[1722456760678,6.380451,3254.0,3253.4,0.02]
[1722456760895,3.0,3253.9,3253.4,0.02]
[1722456761215,0.30726,3254.5,3253.4,0.02]
[1722456761385,2.4351,3255.3,3253.4,0.02]
[1722456761594,2.4351,3255.3,3253.5,3.07357]
[1722456761595,3.07229,3254.9,3253.5,3.07357]
[1722456761818,5.50703,3255.3,3253.6,0.06145959]
[1722456762106,3.0722,3255.0,3253.7,5.43804]
[1722456762265,3.07194,3255.3,3253.9,3.07316]
[1722456762468,3.379274,3255.2,3254.0,0.31346183]
[1722456762666,3.379274,3255.2,3254.1,0.06145763]
[1722456762882,0.307194,3255.2,3254.1,3.13447763]
[1722456763477,0.307194,3255.2,3253.9,3.13463452]